fUST/lending_fUST_20250407
["ID","MTS","AMOUNT","RATE_DAILY","PERIOD"]
[357261537,1743963018016,91691.97718833,0.0003,10]
[357261687,1743963036378,-401.1590645,0.00022864,2]
[357261688,1743963036388,-251.464431,0.00023661,2]
[357261689,1743963036400,-500.0,0.00023773,2]
[357261690,1743963036410,-500.0,0.00023773,2]
[357261691,1743963036420,-500.0,0.00023773,2]
[357261692,1743963036429,-106.37388375,0.00023773,2]
[357261693,1743963036441,-393.62611625,0.00023773,2]
[357261694,1743963036451,-500.0,0.00023773,2]
[357261695,1743963036461,-500.0,0.00023773,2]
[357261696,1743963036471,-151.0,0.00023848,2]
[357261697,1743963036481,-151.0,0.00023851,2]
[357261698,1743963036491,-151.0,0.00023851,2]
[357261699,1743963036502,-200.0,0.00023851,2]
[357261700,1743963036512,-407.5835104,0.00023852,3]
[357261701,1743963036524,-227.4464896,0.00023852,3]
[357261702,1743963036534,-500.0,0.00023861,2]
[357261703,1743963036544,-500.0,0.00023861,2]
[357261704,1743963036560,-500.0,0.00023861,2]
[357261705,1743963036570,-500.0,0.00023861,2]
[357261706,1743963036579,-500.0,0.00023861,2]
[357261707,1743963036590,-500.0,0.00023861,2]
[357261708,1743963036600,-500.0,0.00023861,2]
[357261709,1743963036610,-500.0,0.00023861,2]
[357261710,1743963036620,-500.0,0.00023861,2]
[357261711,1743963036631,-500.0,0.00023861,2]
[357261712,1743963036641,-500.0,0.00023861,2]
[357261713,1743963036653,-500.0,0.00023861,2]
[357261714,1743963036663,-500.0,0.00023861,2]
[357261715,1743963036674,-500.0,0.00023861,2]
[357261716,1743963036684,-500.0,0.00023861,2]
[357261717,1743963036694,-500.0,0.00023861,2]
[357261718,1743963036704,-156.84985898,0.00023861,2]
[357261719,1743963036716,-343.15014102,0.00023861,2]
[357261720,1743963036726,-60.65235898,0.00023861,2]
[357261742,1743963038024,-269.51324122,0.00023861,2]
[357261744,1743963038036,-169.8343998,0.00023861,2]
[357261746,1743963038046,-648.43576917,0.00023861,2]
[357261747,1743963038056,-500.0,0.00023861,2]
[357261748,1743963038066,-500.0,0.00023861,2]
[357261749,1743963038075,-500.0,0.00023861,2]
[357261750,1743963038085,-500.0,0.00023861,2]
[357261751,1743963038095,-250.00000006,0.00023861,2]
[357261752,1743963038104,-500.0,0.00023861,2]
[357261753,1743963038114,-500.0,0.00023861,2]
[357261754,1743963038123,-500.0,0.00023861,2]
[357261755,1743963038133,-500.0,0.00023861,2]
[357261756,1743963038142,-500.0,0.00023861,2]
[357261757,1743963038156,-265.0,0.00023861,2]
[357261758,1743963038166,-500.0,0.00023861,2]
[357261759,1743963038176,-500.0,0.00023861,2]
[357261760,1743963038187,-500.0,0.00023861,2]
[357261761,1743963038198,-500.0,0.00023861,2]
[357261763,1743963038209,-500.0,0.00023861,2]
[357261764,1743963038219,-500.0,0.00023861,2]
[357261765,1743963038228,-500.0,0.00023861,2]
[357261766,1743963038238,-500.0,0.00023861,2]
[357261767,1743963038247,-467.22983102,0.00023861,2]
[357261768,1743963038260,-32.77016898,0.00023861,2]
[357261769,1743963038270,-500.0,0.00023861,2]
[357261770,1743963038280,-500.0,0.00023861,2]
[357261771,1743963038290,-500.0,0.00023861,2]
[357261772,1743963038300,-500.0,0.00023861,2]
[357261773,1743963038310,-500.0,0.00023861,2]
[357261774,1743963038320,-500.0,0.00023861,2]
[357261775,1743963038435,-500.0,0.00023861,2]
[357261776,1743963038459,-500.0,0.00023861,2]
[357261777,1743963038470,-500.0,0.00023861,2]
[357261778,1743963038480,-500.0,0.00023861,2]
[357261779,1743963038490,-500.0,0.00023861,2]
[357261780,1743963038500,-500.0,0.00023861,2]
[357261781,1743963038510,-500.0,0.00023861,2]
[357261782,1743963038520,-500.0,0.00023861,2]
[357261783,1743963038531,-500.0,0.00023861,2]
[357261784,1743963038547,-500.0,0.00023861,2]
[357261785,1743963038557,-500.0,0.00023861,2]
[357261786,1743963038567,-500.0,0.00023861,2]
[357261787,1743963038578,-500.0,0.00023861,2]
[357261788,1743963038588,-123.05240464,0.00023861,2]
[357261789,1743963038601,-376.94759536,0.00023861,2]
[357261790,1743963038611,-500.0,0.00023861,2]
[357261791,1743963038622,-500.0,0.00023861,2]
[357261792,1743963038633,-300.0,0.00023861,2]
[357261793,1743963038643,-3190.44496166,0.00023862,2]
[357261794,1743963038654,-211.66,0.00023863,3]
[357261795,1743963038664,-500.0,0.00023865,2]
[357261796,1743963038673,-500.0,0.00023873,2]
[357261797,1743963038683,-500.0,0.00023873,2]
[357261798,1743963038692,-500.0,0.00023873,2]
[357261799,1743963038702,-534.14480852,0.00023873,2]
[357261800,1743963038712,-270.89569603,0.00023873,2]
[357261801,1743963038722,-500.0,0.00023873,2]
[357261802,1743963038733,-500.0,0.00023873,2]
[357261803,1743963038742,-500.0,0.00023873,2]
[357261804,1743963038753,-500.0,0.00023873,2]
[357261805,1743963038763,-500.0,0.00023873,2]
[357261806,1743963038772,-500.0,0.00023873,2]
[357261807,1743963038782,-500.0,0.00023873,2]
[357261808,1743963038791,-500.0,0.00023873,2]
[357261809,1743963038801,-500.0,0.00023873,2]
[357261810,1743963038811,-500.0,0.00023873,2]
[357261811,1743963038821,-500.0,0.00023873,2]
[357261812,1743963038831,-500.0,0.00023873,2]
[357261813,1743963038841,-209.16619909,0.00023873,2]
[357261814,1743963038851,-250.6283601,0.00023873,2]
[357261815,1743963038861,-500.0,0.00023873,2]
[357261816,1743963038871,-500.0,0.00023873,2]
[357261817,1743963038881,-500.0,0.00023873,2]
[357261818,1743963038892,-500.0,0.00023873,2]
[357261819,1743963038905,-500.0,0.00023873,2]
[357261820,1743963038915,-500.0,0.00023873,2]
[357261821,1743963038925,-538.130153,0.00023873,2]
[357261822,1743963038935,-200.0,0.00023882,2]
[357261823,1743963038944,-4081.43672783,0.000239,5]
[357261824,1743963038954,-500.0,0.00024201,2]
[357261825,1743963038965,-151.0,0.00024399,2]
[357261826,1743963038975,-500.0,0.00024658,2]
[357261827,1743963038985,-500.0,0.00024658,2]
[357261828,1743963038995,-500.0,0.00024658,2]
[357261829,1743963039005,-500.0,0.00024658,2]
[357261830,1743963039015,-500.0,0.00024658,2]
[357261831,1743963039025,-500.0,0.00024658,2]
[357261832,1743963039034,-500.0,0.00024658,2]
[357261833,1743963039045,-500.0,0.00024658,2]
[357261834,1743963039055,-400.0,0.00024658,2]
[357261835,1743963039064,-500.0,0.00024658,2]
[357261836,1743963039074,-500.0,0.00024658,2]
[357261837,1743963039084,-500.0,0.00024658,2]
[357261838,1743963039093,-500.0,0.00024658,2]
[357261839,1743963039103,-500.0,0.00024658,2]
[357261840,1743963039112,-500.0,0.00024658,2]
[357261841,1743963039123,-500.0,0.00024658,2]
[357261842,1743963039132,-500.0,0.00024658,2]
[357261843,1743963039143,-500.0,0.00024658,2]
[357261844,1743963039156,-500.0,0.00024658,2]
[357261845,1743963039167,-500.0,0.00024658,2]
[357261846,1743963039177,-4081.43672758,0.00024693,5]
[357261847,1743963039187,-912.217439,0.000247,2]
[357261848,1743963039197,-500.0,0.00024799,2]
[357261849,1743963039206,-500.0,0.00024799,2]
[357261850,1743963039216,-500.0,0.00024799,2]
[357261851,1743963039225,-241.82573536,0.00024799,2]
[357261852,1743963039235,-500.0,0.00024799,2]
[357261853,1743963039245,-500.0,0.00024799,2]
[357261854,1743963039254,-3000.0,0.000248,2]
[357261855,1743963039263,-500.0,0.000248,2]
[357261856,1743963039274,-14936.4300398,0.000248,2]
[357261857,1743963039285,-423.32,0.000248,3]
[357261858,1743963039296,-3000.0,0.0002481,2]
[357261859,1743963039307,-3000.0,0.0002482,2]
[357261860,1743963039319,-3000.0,0.0002483,2]
[357261861,1743963039331,-3000.0,0.0002484,2]
[357261862,1743963039342,-3000.0,0.0002485,2]
[357261863,1743963039353,-3000.0,0.0002486,2]
[357261864,1743963039364,-3000.0,0.0002487,2]
[357261865,1743963039375,-500.0,0.00024873,2]
[357261866,1743963039386,-500.0,0.00024873,2]
[357261867,1743963039402,-500.0,0.00024873,2]
[357261868,1743963039415,-500.0,0.00024873,2]
[357261869,1743963039426,-1930.27406706,0.00024873,2]
[357261870,1743963039437,-3000.0,0.0002488,2]
[357261871,1743963039448,-3000.0,0.0002489,2]
[357261872,1743963039460,-14936.4300398,0.0002489,2]
[357261873,1743963039471,-3000.0,0.000249,2]
[357261874,1743963039481,-500.0,0.000249,2]
[357261875,1743963039492,-57727.6255831,0.000249,2]
[357261876,1743963039504,-3000.0,0.0002491,2]
[357261877,1743963039514,-3000.0,0.0002492,2]
[357261878,1743963039525,-3000.0,0.0002493,2]
[357261879,1743963039536,-3000.0,0.0002494,2]
[357261880,1743963039546,-151.0,0.00024947,2]
[357261881,1743963039560,-3000.0,0.0002495,2]
[357261882,1743963039570,-3000.0,0.0002496,2]
[357261883,1743963039580,-3000.0,0.0002497,2]
[357261884,1743963039590,-500.0,0.00024973,2]
[357261885,1743963039601,-3000.0,0.0002498,2]
[357261886,1743963039612,-3000.0,0.0002499,2]
[357261887,1743963039622,-7468.2150199,0.0002499,2]
[357261888,1743963039633,-3000.0,0.00025,2]
[357261890,1743963039644,-500.0,0.00025,2]
[357261892,1743963039660,-19242.541861,0.00025,2]
[357261896,1743963039671,-3000.0,0.0002501,2]
[357261899,1743963039681,-3000.0,0.0002502,2]
[357261901,1743963039693,-3000.0,0.0002503,2]
[357261902,1743963039703,-3000.0,0.0002504,2]
[357261903,1743963039714,-3000.0,0.0002505,2]
[357261904,1743963039726,-3000.0,0.0002506,2]
[357261906,1743963039736,-3000.0,0.0002507,2]
[357261907,1743963039747,-500.0,0.00025073,2]
[357261909,1743963039757,-500.0,0.00025073,2]
[357261911,1743963039768,-500.0,0.00025073,2]
[357261912,1743963039777,-3000.0,0.0002508,2]
[357261913,1743963039788,-3000.0,0.0002509,2]
[357261914,1743963039797,-3000.0,0.000251,2]
[357261915,1743963039807,-500.0,0.000251,2]
[357261916,1743963039817,-7468.2150199,0.000251,2]
[357261917,1743963039827,-3000.0,0.0002511,2]
[357261918,1743963039837,-3000.0,0.0002512,2]
[357261919,1743963039847,-19242.541861,0.0002512,2]
[357261920,1743963039857,-3000.0,0.0002513,2]
[357261921,1743963039867,-3000.0,0.0002514,2]
[357261923,1743963039877,-5352.682325,0.0002515,2]
[357261924,1743963039888,-500.0,0.000252,2]
[357261925,1743963039901,-207.4,0.0002522,2]
[357261926,1743963040001,-423.32,0.00025233,3]
[357261928,1743963040012,-200.0,0.00025252,2]
[357261929,1743963040022,-500.0,0.000253,2]
[357261931,1743963040033,-500.0,0.000254,2]
[357261932,1743963040043,-4081.43672758,0.00025486,6]
[357261933,1743963040053,-267.8476599,0.00025495,2]
[357261934,1743963040063,-160.0,0.00025631,2]
[357261935,1743963040072,-160.0,0.00025631,2]
[357261936,1743963040082,-160.0,0.00025631,2]
[357261937,1743963040092,-719.782386,0.000258,2]
[357261938,1743963040102,-420.0,0.00025879,2]
[357261939,1743963040113,-500.0,0.000259,2]
[357261940,1743963040123,-500.0,0.00026,2]
[357261941,1743963040134,-500.0,0.000261,2]
[357261942,1743963040145,-846.64,0.0002617,3]
[357261943,1743963040160,-500.0,0.000262,2]
[357261944,1743963040171,-7468.2150199,0.00026269,2]
[357261945,1743963040181,-4081.43672758,0.00026279,6]
[357261946,1743963040191,-500.0,0.000263,2]
[357261947,1743963040202,-500.0,0.000264,2]
[357261948,1743963040212,-500.0,0.000265,2]
[357261950,1743963040222,-215.0738,0.00026589,2]
[357261951,1743963040231,-500.0,0.000266,2]
[357261952,1743963040242,-500.0,0.000267,2]
[357261953,1743963040252,-500.0,0.000268,2]
[357261954,1743963040262,-19242.541861,0.00026872,2]
[357261955,1743963040271,-7468.2150199,0.00026872,2]
[357261956,1743963040282,-12500.0,0.00026874,3]
[357261957,1743963040292,-424.68163059,0.00026874,3]
[357261958,1743963040302,-12500.0,0.00026882,3]
[357261959,1743963040312,-12500.0,0.00026891,3]
[357261960,1743963040322,-12500.0,0.000269,3]
[357261961,1743963040332,-500.0,0.000269,2]
[357261962,1743963040342,-364.88753022,0.000269,3]
[357261963,1743963040352,-7468.2150199,0.00026923,2]
[357261965,1743963040362,-19242.541861,0.00026933,2]
[357261967,1743963040372,-500.0,0.00027,2]
[357261968,1743963040382,-4081.43672758,0.00027072,7]
[357261969,1743963040392,-500.0,0.000271,2]
[357261970,1743963040405,-500.0,0.000272,2]
[357261971,1743963040415,-500.0,0.000273,2]
[357261972,1743963040425,-300.0,0.00027397,5]
[357261973,1743963040435,-7442.29189872,0.00027397,5]
[357261974,1743963040445,-500.0,0.00027397,5]
[357261975,1743963040455,-500.0,0.000274,2]
[357261976,1743963040464,-500.0,0.000275,2]
[357261977,1743963040473,-7876.8686002,0.00027541,5]
[357261978,1743963040483,-4081.43672758,0.00027866,7]
[357261979,1743963040492,-223.0315306,0.00027958,2]
[357261980,1743963040501,-587.0,0.00028069,2]
[357261981,1743963040510,-4081.43672758,0.00028659,8]
[357261982,1743963040520,-5306.72652989,0.00028675,2]
[357261983,1743963040529,-7468.2150199,0.0002897,2]
[357261984,1743963040544,-500.0,0.00028973,5]
[357261985,1743963040555,-500.0,0.00028973,5]
[357261986,1743963040565,-500.0,0.00028973,5]
[357261987,1743963040575,-500.0,0.00028973,5]
[357261988,1743963040585,-262.72398466,0.00028973,5]
[357261989,1743963040595,-19242.541861,0.0002898,2]
[357261990,1743963040604,-7468.2150199,0.0002898,2]
[357261991,1743963040614,-76970.1674442,0.0002899,2]
[357261992,1743963040626,-37341.0750995,0.0002899,2]
[357261993,1743963040635,-45259.46303578,0.00029,7]
[357261996,1743963040659,-8045.0,0.00029,7]
[357261999,1743963040682,-365.53143205,0.00029,7]
[357262003,1743963040707,-46819.86642651,0.00029,7]
[357262009,1743963040792,-2567.48790857,0.00029,7]
[357262012,1743963040811,-303.14430654,0.00029,7]
[357262017,1743963040847,-95184.48526222,0.00029,7]
[357262030,1743963041012,-4022.98147405,0.00029,7]
[357262031,1743963041031,-842.42856795,0.00029,7]
[357262032,1743963041049,-561.88360272,0.00029,7]
[357262110,1743963043225,-1607.63611219,0.00029,7]
[357262113,1743963043243,-534.78947724,0.00029,7]
[357262116,1743963043258,-497.5,0.00029,7]
[357262118,1743963043274,-497.5,0.00029,7]
[357262121,1743963043289,-529.98387815,0.00029121,2]
[357262123,1743963043304,-1000.0,0.00029252,5]
[357262126,1743963043319,-1000.0,0.00029252,5]
[357262151,1743963043335,-1000.0,0.00029252,5]
[357262154,1743963043496,-500.0,0.00029252,5]
[357262156,1743963043506,-500.0,0.00029252,2]
[357262158,1743963043516,-231.28369723,0.00029327,2]
[357262160,1743963043525,-251.98532181,0.00029352,5]
[357262162,1743963043535,-663.55268246,0.00029352,5]
[357262164,1743963043549,-500.0,0.00029352,5]
[357262166,1743963043559,-1000.0,0.00029352,5]
[357262168,1743963043569,-511.47588014,0.00029352,5]
[357262170,1743963043581,-1000.0,0.00029352,5]
[357262173,1743963043591,-1000.0,0.00029352,2]
[357262175,1743963043602,-1000.0,0.00029352,5]
[357262177,1743963043611,-185.3849883,0.00029352,5]
[357262178,1743963043622,-1000.0,0.00029352,5]
[357262180,1743963043631,-653.7326298,0.00029352,5]
[357262181,1743963043641,-1000.0,0.00029352,5]
[357262182,1743963043651,-1000.0,0.00029352,5]
[357262183,1743963043660,-1000.0,0.00029352,5]
[357262184,1743963043670,-500.0,0.00029352,5]
[357262185,1743963043680,-1000.0,0.00029352,5]
[357262186,1743963043690,-4081.43672758,0.00029452,8]
[357262187,1743963043700,-1132.55,0.0003,2]
[357262188,1743963043710,-168.0,0.0003,2]
[357262189,1743963043722,-4081.43672758,0.00030245,9]
[357262190,1743963043744,-1000.0,0.00030352,5]
[357262191,1743963043762,-1000.0,0.00030352,5]
[357262192,1743963043772,-720.0,0.00030443,2]
[357262193,1743963043783,-500.0,0.00030452,5]
[357262194,1743963043793,-1000.0,0.00030552,5]
[357262195,1743963043803,-500.0,0.00030552,5]
[357262196,1743963043813,-239.84119403,0.00030696,2]
[357262197,1743963043823,-401.0,0.00030756,2]
[357262198,1743963043833,-4081.43672758,0.00031038,9]
[357262199,1743963043842,-14773.76298604,0.0003129,2]
[357262200,1743963043855,-162.66705376,0.0003129,2]
[357262201,1743963043864,-2691.7,0.000313,31]
[357262202,1743963043874,-2691.7,0.000313,31]
[357262203,1743963043884,-2691.7,0.000313,31]
[357262204,1743963043894,-2691.7,0.000313,31]
[357262205,1743963043906,-2691.7,0.000313,31]
[357262206,1743963043916,-2691.7,0.000313,31]
[357262207,1743963043926,-2691.7,0.000313,31]
[357262208,1743963043937,-2691.7,0.000313,31]
[357262209,1743963043946,-2691.7,0.000313,31]
[357262210,1743963043956,-2691.7,0.000313,31]
[357262211,1743963043966,-2691.7,0.000313,31]
[357262212,1743963043976,-2691.7,0.000313,31]
[357262213,1743963043985,-2691.7,0.000313,31]
[357262214,1743963043995,-2691.7,0.000313,31]
[357262215,1743963044004,-2691.7,0.000313,31]
[357262216,1743963044014,-2691.7,0.000313,31]
[357262217,1743963044024,-2691.7,0.000313,31]
[357262218,1743963044034,-2691.7,0.000313,31]
[357262219,1743963044044,-2691.7,0.000313,31]
[357262220,1743963044054,-152.89,0.000313,31]
[357262221,1743963044064,-152.89,0.000313,31]
[357262223,1743963044073,-152.89,0.000313,31]
[357262225,1743963044082,-152.89,0.000313,31]
[357262226,1743963044092,-152.89,0.000313,31]
[357262228,1743963044102,-152.89,0.000313,31]
[357262230,1743963044112,-152.89,0.000313,31]
[357262232,1743963044122,-152.89,0.000313,31]
[357262234,1743963044131,-152.89,0.000313,31]
[357262236,1743963044141,-152.89,0.000313,31]
[357262238,1743963044150,-152.89,0.000313,31]
[357262240,1743963044161,-152.89,0.000313,31]
[357262242,1743963044171,-152.89,0.000313,31]
[357262244,1743963044180,-152.89,0.000313,31]
[357262246,1743963044190,-152.89,0.000313,31]
[357262248,1743963044200,-152.89,0.000313,31]
[357262250,1743963044209,-152.89,0.000313,31]
[357262252,1743963044219,-152.89,0.000313,31]
[357262254,1743963044228,-152.89,0.000313,31]
[357262256,1743963044238,-152.89,0.000313,31]
[357262258,1743963044247,-152.89,0.000313,31]
[357262260,1743963044257,-152.89,0.000313,31]
[357262262,1743963044266,-4081.43672758,0.00031831,10]
[357262264,1743963044276,-248.71531821,0.00032065,2]
[357262266,1743963044286,-1487.0,0.00032076,2]
[357262268,1743963044296,-556.208,0.00032076,2]
[357262270,1743963044306,-2259.0,0.00032076,2]
[357262272,1743963044316,-2215.306,0.0003211,2]
[357262274,1743963044325,-4081.43672758,0.00032624,10]
[357262276,1743963044335,-1000.0,0.00032877,5]
[357262278,1743963044345,-254.80467,0.00032936,30]
[357262280,1743963044356,-168.0,0.00033,2]
[357262282,1743963044367,-164.0,0.00033,2]
[357262284,1743963044378,-3300.8579121,0.00033274,2]
[357262286,1743963044388,-4081.43672758,0.00033417,11]
[357262288,1743963044398,-257.91778498,0.00033434,2]
[357262290,1743963044412,-401.0,0.00033756,2]
[357262292,1743963044424,-4081.43672758,0.0003421,11]
[357262294,1743963044434,-500.0,0.00034452,5]
[357262296,1743963044445,-500.0,0.00034452,5]
[357262298,1743963044455,-164.0,0.00034521,2]
[357262300,1743963044465,-267.46074303,0.00034803,2]
[357262302,1743963044475,-4081.43672758,0.00035003,12]
[357262304,1743963044485,-1478.0,0.00035076,2]
[357262306,1743963044495,-542.0,0.00035076,2]
[357262308,1743963044505,-1930.27406706,0.00035441,2]
[357262310,1743963044515,-251.464431,0.00035492,2]
[357262312,1743963044525,-500.0,0.00035616,7]
[357262314,1743963044535,-258.9469252,0.00035616,7]
[357262316,1743963044545,-151.0,0.000357,20]
[357262318,1743963044558,-4081.43672758,0.00035797,12]
[357262320,1743963044569,-7468.2150199,0.0003588,3]
[357262322,1743963044579,-1000.0,0.0003589,2]
[357262324,1743963044590,-168.0,0.00036,2]
[357262326,1743963044601,-152.89,0.000361,31]
[357262328,1743963044610,-152.89,0.000361,31]
[357262330,1743963044620,-152.89,0.000361,31]
[357262332,1743963044630,-152.89,0.000361,31]
[357262334,1743963044641,-152.89,0.000361,31]
[357262336,1743963044650,-152.89,0.000361,31]
[357262338,1743963044661,-152.89,0.000361,31]
[357262340,1743963044672,-152.89,0.000361,31]
[357262342,1743963044681,-152.89,0.000361,31]
[357262344,1743963044692,-152.89,0.000361,31]
[357262346,1743963044702,-152.89,0.000361,31]
[357262348,1743963044712,-152.89,0.000361,31]
[357262350,1743963044722,-152.89,0.000361,31]
[357262352,1743963044733,-152.89,0.000361,31]
[357262354,1743963044743,-152.89,0.000361,31]
[357262356,1743963044754,-152.89,0.000361,31]
[357262358,1743963044764,-152.89,0.000361,31]
[357262360,1743963044775,-152.89,0.000361,31]
[357262362,1743963044785,-152.89,0.000361,31]
[357262364,1743963044795,-152.89,0.000361,31]
[357262366,1743963044806,-152.89,0.000361,31]
[357262368,1743963044817,-152.89,0.000361,31]
[357262370,1743963044827,-277.35679052,0.00036172,2]
[357262372,1743963044837,-2804.50176101,0.000362,98]
[357262374,1743963044847,-2804.50176097,0.000362,98]
[357262376,1743963044857,-2804.50176097,0.000362,98]
[357262378,1743963044867,-4081.43672758,0.0003659,13]
[357262380,1743963044876,-401.0,0.00036756,2]
[357262382,1743963044886,-4081.43672758,0.00037383,13]
[357262384,1743963044896,-151.0,0.000375,13]
[357262386,1743963044907,-287.61899177,0.00037541,2]
[357262388,1743963044917,-181.62098882,0.00037809,49]
[357262390,1743963044926,-276.974,0.00037809,49]
[357262392,1743963044935,-1478.0,0.00038076,2]
[357262394,1743963044945,-542.0,0.00038076,2]
[357262396,1743963044954,-4081.43672758,0.00038176,14]
[357262398,1743963044963,-631.0,0.000382,2]
[357262400,1743963044972,-200.0,0.0003828,51]
[357262402,1743963044982,-1500.0,0.00038356,5]
[357262403,1743963044991,-298.26089446,0.0003891,2]
[357262406,1743963045001,-4081.43672758,0.00038969,14]
[357262408,1743963045011,-1500.0,0.00039271,5]
[357262409,1743963045021,-1500.0,0.00039271,5]
[357262411,1743963045031,-151.0,0.000393,18]
[357262412,1743963045040,-1500.0,0.00039371,5]
[357262413,1743963045050,-1500.0,0.00039371,2]
[357262415,1743963045059,-1500.0,0.00039371,5]
[357262417,1743963045069,-1500.0,0.00039371,5]
[357262419,1743963045078,-1500.0,0.00039371,5]
[357262421,1743963045088,-500.0,0.00039371,5]
[357262422,1743963045097,-500.0,0.00039371,5]
[357262423,1743963045107,-401.0,0.00039756,2]
[357262424,1743963045118,-4081.43672758,0.00039762,15]
[357262425,1743963045127,-309.29654756,0.00040279,2]
[357262426,1743963045137,-553.22098026,0.00040371,5]
[357262427,1743963045147,-2804.50176097,0.00040443,120]
[357262428,1743963045160,-7468.2150199,0.00040545,3]
[357262430,1743963045170,-4081.43672758,0.00040555,15]
[357262431,1743963045278,-843.67453724,0.00040571,5]
[357262432,1743963045294,-656.32546276,0.00040571,5]
[357262433,1743963045305,-152.89,0.000408,31]
[357262434,1743963045317,-152.89,0.000408,31]
[357262435,1743963045327,-77.70221849,0.000408,31]
[357262436,1743963045340,-75.18778151,0.000408,31]
[357262437,1743963045351,-152.89,0.000408,31]
[357262438,1743963045362,-152.89,0.000408,31]
[357262439,1743963045374,-152.89,0.000408,31]
[357262440,1743963045386,-152.89,0.000408,31]
[357262441,1743963045399,-152.89,0.000408,31]
[357262442,1743963045416,-152.89,0.000408,31]
[357262443,1743963045426,-152.89,0.000408,31]
[357262444,1743963045437,-152.89,0.000408,31]
[357262445,1743963045447,-152.89,0.000408,31]
[357262446,1743963045459,-152.89,0.000408,31]
[357262447,1743963045470,-152.89,0.000408,31]
[357262448,1743963045482,-152.89,0.000408,31]
[357262449,1743963045493,-152.89,0.000408,31]
[357262450,1743963045504,-152.89,0.000408,31]
[357262452,1743963045516,-152.89,0.000408,31]
[357262454,1743963045529,-152.89,0.000408,31]
[357262456,1743963045541,-152.89,0.000408,31]
[357262458,1743963045553,-152.89,0.000408,31]
[357262459,1743963045567,-152.89,0.000408,31]
[357262461,1743963045578,-200.0,0.0004096,59]
[357262463,1743963045589,-1478.0,0.00041076,2]
[357262464,1743963045603,-542.0,0.00041076,2]
[357262466,1743963045617,-404.52064021,0.00041096,60]
[357262467,1743963045628,-151.0,0.000411,16]
[357262468,1743963045639,-1000.0,0.00041211,120]
[357262469,1743963045651,-4081.43672758,0.00041348,16]
[357262470,1743963045669,-200.0,0.0004164,30]
[357262473,1743963045680,-320.74051982,0.00041648,2]
[357262476,1743963045691,-200.0,0.0004165,30]
[357262478,1743963045702,-200.0,0.0004166,30]
[357262480,1743963045712,-1326.4690959,0.0004167,4]
[357262482,1743963045723,-509.32840139,0.000417,7]
[357262488,1743963046080,-595.49976501,0.000417,7]
[357262489,1743963046093,-434.68759652,0.000417,7]
[357262490,1743963046105,-1858.14423708,0.000417,7]
[357262491,1743963046115,-2806.274046,0.000419,40]
[357262492,1743963046125,-160.0,0.0004202,3]
[357262493,1743963046134,-176.58171704,0.00042131,30]
[357262494,1743963046389,-1615.4,0.000289,2]
[357262495,1743963046448,-6063.91,0.000289,2]
[357262496,1743963046458,-20485.81052867,0.00030987,2]
[357262497,1743963168129,153.89,0.000266,31]
[357262498,1743963168166,153.89,0.000266,31]
[357262499,1743963168237,153.89,0.000266,31]
[357262500,1743963186387,7870.8686002,0.00027541,15]